fUSD/lending_fUSD_20250826
["ID","MTS","AMOUNT","RATE_DAILY","PERIOD"]
[381481702,1756230701974,-1124.09,0.00027671,5]
[381481703,1756230701983,-400.0,0.00027671,5]
[381481704,1756230701994,-1253.31,0.00027671,5]
[381481705,1756230702004,-184.48880185,0.00027671,5]
[381481706,1756230702015,-1325.68,0.00027671,5]
[381481707,1756230702025,-938.22,0.00027671,5]
[381481708,1756230702034,-601.51,0.00027671,5]
[381481709,1756230702045,-499.47,0.00027671,5]
[381481710,1756230702055,-400.0,0.00027671,5]
[381481711,1756230702065,-400.0,0.00027671,5]
[381481712,1756230702075,-484.19,0.00027671,5]
[381481713,1756230702085,-400.0,0.00027671,5]
[381481714,1756230702095,-797.42,0.00027671,5]
[381481715,1756230702106,-737.11,0.00027671,5]
[381481716,1756230702115,-703.79,0.00027671,5]
[381481717,1756230702126,-680.36,0.00027671,5]
[381481718,1756230702135,-1575.39,0.00027671,5]
[381481719,1756230702145,-672.12,0.00027671,5]
[381481720,1756230702155,-514.45757033,0.00027671,5]
[381481721,1756230702166,-759.87,0.00027671,5]
[381481722,1756230702176,-926.18,0.00027671,5]
[381481723,1756230702185,-400.0,0.00027671,5]
[381481724,1756230702196,-400.0,0.00027671,5]
[381481725,1756230702207,-400.0,0.00027671,5]
[381481726,1756230702217,-618.83,0.00027671,5]
[381481727,1756230702235,-862.99,0.00027671,5]
[381481728,1756230702246,-1447.2,0.00027671,5]
[381481729,1756230702256,-400.0,0.00027671,5]
[381481730,1756230702266,-400.0,0.00027671,5]
[381481731,1756230702276,-1075.04,0.00027671,5]
[381481732,1756230702287,-1260.62,0.00027671,5]
[381481733,1756230702298,-575.53,0.00027671,5]
[381481734,1756230702308,-489.17,0.00027671,5]
[381481735,1756230702318,-845.06,0.00027671,5]
[381481736,1756230702329,-1238.05,0.00027671,5]
[381481737,1756230702340,-400.0,0.00027671,5]
[381481738,1756230702350,-1102.7,0.00027671,5]
[381481739,1756230702360,-400.0,0.00027671,5]
[381481740,1756230702370,-500.0,0.00027671,10]
[381481741,1756230702380,-1359.79,0.00027671,5]
[381481742,1756230702391,-820.48,0.00027671,5]
[381481743,1756230702400,-1712.23,0.00027671,5]
[381481744,1756230702410,-1138.32,0.00027671,5]
[381481745,1756230702420,-400.0,0.00027671,5]
[381481746,1756230702430,-717.51,0.00027671,5]
[381481747,1756230702440,-690.59,0.00027671,5]
[381481748,1756230702461,-400.0,0.00027671,5]
[381481749,1756230702474,-400.0,0.00027671,5]
[381481750,1756230702484,-400.0,0.00027671,5]
[381481751,1756230702493,-400.0,0.00027671,5]
[381481752,1756230702503,-400.0,0.00027671,5]
[381481753,1756230702512,-702.95,0.00027671,5]
[381481754,1756230702522,-400.0,0.00027671,5]
[381481755,1756230702531,-1643.75,0.00027671,5]
[381481756,1756230702541,-956.27,0.00027671,5]
[381481757,1756230702550,-400.0,0.00027671,5]
[381481758,1756230702560,-1080.95,0.00027671,5]
[381481759,1756230702571,-400.0,0.00027671,5]
[381481760,1756230702583,-704.75,0.00027671,5]
[381481761,1756230702593,-1188.76,0.00027671,5]
[381481762,1756230702604,-830.28,0.00027671,5]
[381481763,1756230702617,-400.0,0.00027671,5]
[381481764,1756230702629,-884.15,0.00027671,5]
[381481765,1756230702638,-4381.4,0.00027671,5]
[381481766,1756230702650,-883.77,0.00027671,5]
[381481767,1756230702664,-903.37,0.00027671,5]
[381481768,1756230702674,-1272.98,0.00027671,5]
[381481769,1756230702684,-400.0,0.00027671,5]
[381481770,1756230702694,-400.0,0.00027671,5]
[381481771,1756230702705,-400.0,0.00027671,5]
[381481772,1756230702715,-400.0,0.00027671,5]
[381481773,1756230702724,-1035.82,0.00027671,5]
[381481774,1756230702735,-440.04,0.00027671,5]
[381481775,1756230702745,-588.09,0.00027671,5]
[381481776,1756230702754,-1060.85,0.00027671,5]
[381481777,1756230702764,-729.67,0.00027671,5]
[381481778,1756230702774,-734.09,0.00027671,5]
[381481779,1756230702784,-400.0,0.00027671,5]
[381481780,1756230702794,-818.36,0.00027671,5]
[381481781,1756230702804,-400.0,0.00027671,5]
[381481782,1756230702814,-1006.17,0.00027671,5]
[381481783,1756230702823,-1343.19,0.00027671,5]
[381481784,1756230702833,-400.0,0.00027671,5]
[381481785,1756230702843,-752.5,0.00027671,5]
[381481786,1756230702852,-1000.26,0.00027671,5]
[381481787,1756230702862,-400.0,0.00027671,5]
[381481788,1756230702872,-400.0,0.00027671,5]
[381481789,1756230702883,-1006.41,0.00027671,5]
[381481790,1756230702894,-927.58,0.00027671,5]
[381481791,1756230702905,-1229.66,0.00027671,5]
[381481792,1756230702915,-465.25,0.00027671,5]
[381481793,1756230702925,-819.77,0.00027671,5]
[381481794,1756230702935,-574.94,0.00027671,5]
[381481795,1756230702945,-1087.43,0.00027671,5]
[381481796,1756230702954,-400.0,0.00027671,5]
[381481797,1756230702964,-1561.08,0.00027671,5]
[381481798,1756230702975,-605.76,0.00027671,5]
[381481799,1756230702985,-633.29,0.00027671,5]
[381481800,1756230702997,-673.66,0.00027671,5]
[381481801,1756230703009,-1303.8,0.00027671,5]
[381481802,1756230703019,-951.85,0.00027671,5]
[381481803,1756230703030,-727.97,0.00027671,5]
[381481804,1756230703040,-400.0,0.00027671,5]
[381481805,1756230703050,-761.39,0.00027671,5]
[381481806,1756230703061,-823.04,0.00027671,5]
[381481807,1756230703071,-995.91,0.00027671,5]
[381481808,1756230703081,-726.7,0.00027671,5]
[381481809,1756230703090,-2954.18,0.00027671,5]
[381481810,1756230703100,-932.17,0.00027671,5]
[381481811,1756230703110,-777.25,0.00027671,5]
[381481812,1756230703120,-460.69121376,0.00027671,5]
[381481813,1756230703131,-810.82,0.00027671,5]
[381481814,1756230703141,-674.55,0.00027671,5]
[381481815,1756230703151,-400.0,0.00027671,5]
[381481816,1756230703161,-400.0,0.00027671,5]
[381481817,1756230703170,-336.98681835,0.00027671,5]
[381481818,1756230703181,-524.65,0.00027671,5]
[381481819,1756230703190,-894.99,0.00027671,5]
[381481820,1756230703200,-610.96,0.00027671,5]
[381481821,1756230703210,-433.22,0.00027671,5]
[381481822,1756230703221,-400.0,0.00027671,5]
[381481823,1756230703230,-1276.0,0.00027671,5]
[381481824,1756230703240,-705.71,0.00027671,5]
[381481825,1756230703250,-1048.88,0.00027671,5]
[381481826,1756230703259,-916.09,0.00027671,5]
[381481827,1756230703269,-635.0,0.00027671,5]
[381481828,1756230703279,-735.88,0.00027671,5]
[381481829,1756230703288,-400.0,0.00027671,5]
[381481830,1756230703298,-400.0,0.00027671,5]
[381481831,1756230703308,-1476.54,0.00027671,5]
[381481832,1756230703318,-586.32,0.00027671,5]
[381481833,1756230703328,-420.01,0.00027671,5]
[381481834,1756230703337,-865.15,0.00027671,5]
[381481835,1756230703347,-1424.15,0.00027671,5]
[381481836,1756230703356,-711.61,0.00027671,5]
[381481837,1756230703366,-400.0,0.00027671,5]
[381481838,1756230703375,-400.0,0.00027671,5]
[381481839,1756230703385,-400.0,0.00027671,5]
[381481840,1756230703395,-657.69,0.00027671,5]
[381481841,1756230703404,-400.41607782,0.00027671,5]
[381481842,1756230703414,-2547.01,0.00027671,5]
[381481843,1756230703424,-569.85,0.00027671,5]
[381481844,1756230703433,-924.7,0.00027671,5]
[381481845,1756230703443,-1447.41,0.00027671,5]
[381481846,1756230703452,-400.0,0.00027671,5]
[381481847,1756230703462,-1186.06,0.00027671,5]
[381481848,1756230703472,-947.0,0.00027671,5]
[381481849,1756230703481,-1125.16,0.00027671,5]
[381481850,1756230703491,-1017.63,0.00027671,5]
[381481851,1756230703501,-509.43,0.00027671,5]
[381481852,1756230703510,-629.18,0.00027671,5]
[381481853,1756230703519,-1490.01,0.00027671,5]
[381481854,1756230703529,-1054.6,0.00027671,5]
[381481855,1756230703538,-516.44,0.00027671,5]
[381481856,1756230703548,-402.51942939,0.00027671,5]
[381481857,1756230703558,-682.69,0.00027671,5]
[381481858,1756230703569,-1009.65,0.00027671,5]
[381481859,1756230703578,-810.92,0.00027671,5]
[381481860,1756230703587,-883.73,0.00027671,5]
[381481861,1756230703597,-1283.33,0.00027671,5]
[381481862,1756230703607,-1591.74,0.00027671,5]
[381481863,1756230703618,-817.88,0.00027671,5]
[381481864,1756230703627,-657.14,0.00027671,5]
[381481865,1756230703637,-559.69,0.00027671,5]
[381481866,1756230703649,-400.0,0.00027671,5]
[381481867,1756230703663,-400.0,0.00027671,5]
[381481868,1756230703673,-434.49,0.00027671,5]
[381481869,1756230703683,-543.23,0.00027671,5]
[381481870,1756230703694,-839.27,0.00027671,5]
[381481871,1756230703704,-694.48,0.00027671,5]
[381481872,1756230703713,-400.0,0.00027671,5]
[381481873,1756230703723,-1164.11,0.00027671,5]
[381481874,1756230703735,-400.0,0.00027671,5]
[381481875,1756230703746,-198.57712304,0.00027671,5]
[381481876,1756230703755,-2471.18,0.00027671,5]
[381481877,1756230703765,-735.71,0.00027671,5]
[381481878,1756230703774,-923.85,0.00027671,5]
[381481879,1756230703783,-602.76,0.00027671,5]
[381481880,1756230703792,-400.0,0.00027671,5]
[381481881,1756230703802,-400.0,0.00027671,5]
[381481882,1756230703811,-1015.23,0.00027671,5]
[381481883,1756230703821,-1297.06,0.00027671,5]
[381481884,1756230703831,-400.0,0.00027671,5]
[381481885,1756230703840,-1022.18,0.00027671,5]
[381481886,1756230703977,-413.82,0.00027671,5]
[381481887,1756230703988,-400.0,0.00027671,5]
[381481888,1756230703998,-400.0,0.00027671,5]
[381481889,1756230704008,-435.62,0.00027671,5]
[381481890,1756230704017,-400.0,0.00027671,5]
[381481891,1756230704026,-677.17,0.00027671,5]
[381481892,1756230704036,-481.79,0.00027671,5]
[381481893,1756230704045,-869.43,0.00027671,5]
[381481894,1756230704054,-400.0,0.00027671,5]
[381481895,1756230704063,-1587.32,0.00027671,5]
[381481896,1756230704072,-400.0,0.00027671,5]
[381481897,1756230704081,-400.0,0.00027671,5]
[381481898,1756230704090,-404.82,0.00027671,5]
[381481899,1756230704100,-1419.4,0.00027671,5]
[381481900,1756230704110,-795.96,0.00027671,5]
[381481901,1756230704120,-400.0,0.00027671,5]
[381481902,1756230704129,-400.0,0.00027671,5]
[381481903,1756230704138,-400.0,0.00027671,5]
[381481904,1756230704147,-1337.38,0.00027671,5]
[381481905,1756230704156,-400.0,0.00027671,5]
[381481906,1756230704165,-1193.06,0.00027671,5]
[381481907,1756230704175,-643.48,0.00027671,5]
[381481908,1756230704184,-1262.91,0.00027671,5]
[381481909,1756230704194,-400.0,0.00027671,5]
[381481910,1756230704204,-1405.96,0.00027671,5]
[381481911,1756230704214,-1694.19,0.00027671,5]
[381481912,1756230704224,-400.0,0.00027671,5]
[381481913,1756230704233,-847.69,0.00027671,5]
[381481914,1756230704242,-1265.35,0.00027671,5]
[381481915,1756230704252,-1432.19,0.00027671,5]
[381481916,1756230704261,-837.85,0.00027671,5]
[381481917,1756230704271,-1066.71,0.00027671,5]
[381481918,1756230704280,-1337.65,0.00027671,5]
[381481919,1756230704289,-400.0,0.00027671,5]
[381481920,1756230704299,-983.38,0.00027671,5]
[381481921,1756230704309,-2638.84,0.00027671,5]
[381481922,1756230704319,-448.3,0.00027671,5]
[381481923,1756230704328,-510.88,0.00027671,5]
[381481924,1756230704337,-1419.37,0.00027671,5]
[381481925,1756230704347,-1378.39,0.00027671,5]
[381481926,1756230704356,-1097.19,0.00027671,5]
[381481927,1756230704366,-866.21,0.00027671,5]
[381481928,1756230704376,-436.05,0.00027671,5]
[381481929,1756230704385,-968.52,0.00027671,5]
[381481930,1756230704394,-1097.27,0.00027671,5]
[381481931,1756230704403,-400.0,0.00027671,5]
[381481932,1756230704413,-400.74487584,0.00027671,5]
[381481933,1756230704422,-400.0,0.00027671,5]
[381481934,1756230704432,-400.0,0.00027671,5]
[381481935,1756230704441,-898.9,0.00027671,5]
[381481936,1756230704450,-400.0,0.00027671,5]
[381481937,1756230704460,-400.0,0.00027671,5]
[381481938,1756230704470,-894.21,0.00027671,5]
[381481939,1756230704479,-1054.02,0.00027671,5]
[381481940,1756230704492,-486.16,0.00027671,5]
[381481941,1756230704501,-400.0,0.00027671,5]
[381481942,1756230704510,-2351.0,0.00027671,5]
[381481943,1756230704519,-400.0,0.00027671,5]
[381481944,1756230704528,-990.16,0.00027671,5]
[381481945,1756230704537,-400.0,0.00027671,5]
[381481946,1756230704546,-400.0,0.00027671,5]
[381481947,1756230704555,-708.23,0.00027671,5]
[381481948,1756230704564,-400.0,0.00027671,5]
[381481949,1756230704573,-400.0,0.00027671,5]
[381481950,1756230704582,-812.56,0.00027671,5]
[381481951,1756230704591,-1481.93,0.00027671,5]
[381481952,1756230704600,-400.0,0.00027671,5]
[381481953,1756230704609,-1309.05,0.00027671,5]
[381481954,1756230704618,-400.0,0.00027671,5]
[381481955,1756230704628,-12576.35,0.00027671,5]
[381481956,1756230704637,-400.0,0.00027671,5]
[381481957,1756230704647,-752.61,0.00027671,5]
[381481958,1756230704657,-400.0,0.00027671,5]
[381481959,1756230704667,-716.67,0.00027671,5]
[381481960,1756230704676,-440.38,0.00027671,5]
[381481961,1756230704685,-1040.13,0.00027671,5]
[381481962,1756230704694,-1045.55,0.00027671,5]
[381481963,1756230704703,-610.13,0.00027671,5]
[381481964,1756230704714,-1232.14,0.00027671,5]
[381481965,1756230704723,-453.93,0.00027671,5]
[381481966,1756230704733,-358.83634331,0.00027671,5]
[381481967,1756230704743,-400.0,0.00027671,5]
[381481968,1756230704751,-513.88,0.00027671,5]
[381481969,1756230704761,-956.51,0.00027671,5]
[381481970,1756230704770,-400.0,0.00027671,5]
[381481971,1756230704780,-2716.73,0.00027671,5]
[381481972,1756230704789,-1004.11,0.00027671,5]
[381481973,1756230704799,-1144.57,0.00027671,5]
[381481974,1756230704810,-1348.02,0.00027671,5]
[381481975,1756230704819,-400.0,0.00027671,5]
[381481976,1756230704829,-400.0,0.00027671,5]
[381481977,1756230704839,-400.0,0.00027671,5]
[381481978,1756230704848,-795.95,0.00027671,5]
[381481979,1756230704858,-720.68,0.00027671,5]
[381481980,1756230704867,-400.0,0.00027671,5]
[381481981,1756230704876,-583.37,0.00027671,5]
[381481982,1756230704885,-1164.87,0.00027671,5]
[381481983,1756230704894,-400.0,0.00027671,5]
[381481984,1756230704904,-796.49,0.00027671,5]
[381481985,1756230704913,-1208.11,0.00027671,5]
[381481986,1756230704923,-1234.75,0.00027671,5]
[381481987,1756230704933,-1180.67,0.00027671,5]
[381481988,1756230704942,-400.88411001,0.00027671,5]
[381481989,1756230704951,-2365.85,0.00027671,5]
[381481990,1756230704961,-1090.57,0.00027671,5]
[381481991,1756230704970,-725.15,0.00027671,5]
[381481992,1756230704979,-400.0,0.00027671,5]
[381481993,1756230704988,-1204.31,0.00027671,5]
[381481994,1756230704998,-400.0,0.00027671,5]
[381481995,1756230705008,-774.92,0.00027671,5]
[381481996,1756230705018,-400.0,0.00027671,5]
[381481997,1756230705027,-607.03,0.00027671,5]
[381481998,1756230705036,-1391.48,0.00027671,5]
[381481999,1756230705045,-400.0,0.00027671,5]
[381482000,1756230705054,-1460.18,0.00027671,5]
[381482001,1756230705064,-949.27,0.00027671,5]
[381482002,1756230705074,-1381.91,0.00027671,5]
[381482003,1756230705083,-1529.6,0.00027671,5]
[381482004,1756230705092,-400.0,0.00027671,5]
[381482005,1756230705101,-1214.51,0.00027671,5]
[381482006,1756230705111,-1218.74,0.00027671,5]
[381482007,1756230705119,-681.18,0.00027671,5]
[381482008,1756230705128,-846.41,0.00027671,5]
[381482009,1756230705138,-870.23,0.00027671,5]
[381482010,1756230705148,-2660.08,0.00027671,5]
[381482011,1756230705158,-935.16,0.00027671,5]
[381482012,1756230705168,-1268.24,0.00027671,5]
[381482013,1756230705177,-400.0,0.00027671,5]
[381482014,1756230705187,-960.42,0.00027671,5]
[381482015,1756230705197,-727.24,0.00027671,5]
[381482016,1756230705206,-181.3071387,0.00027671,5]
[381482017,1756230705218,-836.11,0.00027671,5]
[381482018,1756230705228,-400.0,0.00027671,5]
[381482019,1756230705237,-400.0,0.00027671,5]
[381482020,1756230705247,-1206.86,0.00027671,5]
[381482021,1756230705257,-400.0,0.00027671,5]
[381482022,1756230705265,-696.66,0.00027671,5]
[381482023,1756230705274,-5333.52,0.00027671,5]
[381482024,1756230705283,-1646.5,0.00027671,5]
[381482025,1756230705293,-400.0,0.00027671,5]
[381482026,1756230705302,-446.0,0.00027671,5]
[381482027,1756230705311,-400.0,0.00027671,5]
[381482028,1756230705320,-400.0,0.00027671,5]
[381482029,1756230705330,-400.0,0.00027671,2]
[381482030,1756230705341,-604.92,0.00027671,5]
[381482031,1756230705352,-859.49,0.00027671,5]
[381482032,1756230705362,-1578.12,0.00027671,5]
[381482033,1756230705371,-928.83,0.00027671,5]
[381482034,1756230705381,-714.94,0.00027671,5]
[381482035,1756230705392,-752.58,0.00027671,5]
[381482036,1756230705402,-400.0,0.00027671,5]
[381482037,1756230705412,-1272.58,0.00027671,5]
[381482038,1756230705422,-400.0,0.00027671,5]
[381482039,1756230705431,-400.0,0.00027671,5]
[381482040,1756230705440,-636.63,0.00027671,5]
[381482041,1756230705450,-400.0,0.00027671,5]
[381482042,1756230705460,-400.0,0.00027671,2]
[381482043,1756230705470,-400.0,0.00027671,5]
[381482044,1756230705479,-400.0,0.00027671,5]
[381482045,1756230705491,-525.95,0.00027671,5]
[381482046,1756230705502,-760.31,0.00027671,5]
[381482047,1756230705512,-1703.78,0.00027671,5]
[381482048,1756230705522,-400.0,0.00027671,5]
[381482049,1756230705533,-607.66,0.00027671,5]
[381482050,1756230705543,-539.77,0.00027671,2]
[381482051,1756230705553,-332.24,0.00027671,2]
[381482052,1756230705562,-347.58,0.00027671,2]
[381482053,1756230705571,-539.77,0.00027671,2]
[381482054,1756230705580,-23123.16488376,0.00027687,8]
[381482055,1756230705589,-1305.73,0.000277,7]
[381482056,1756230705600,-1000.0,0.00027704,2]
[381482057,1756230705610,-150.0,0.00027729,2]
[381482058,1756230705619,-7000.0,0.00027804,3]
[381482059,1756230705631,-1000.0,0.00027817,2]
[381482060,1756230705641,-6294.58211479,0.00027852,2]
[381482061,1756230705652,-1000.0,0.00027852,2]
[381482062,1756230705665,-150.0,0.00027855,2]
[381482063,1756230705675,-1425.0,0.0002787,2]
[381482064,1756230705684,-200.0,0.00027871,2]
[381482065,1756230705694,-1000.0,0.00027887,2]
[381482066,1756230705703,-1000.0,0.00027894,2]
[381482067,1756230705715,-4696.57,0.000279,8]
[381482068,1756230705724,-141858.58269892,0.000279,3]
[381482069,1756230705735,-151.0,0.000279,7]
[381482070,1756230705745,-151.0,0.000279,7]
[381482071,1756230705754,-151.0,0.000279,7]
[381482072,1756230705763,-273.123243,0.000279,7]
[381482073,1756230705773,-273.123243,0.000279,7]
[381482074,1756230705782,-273.123243,0.000279,7]
[381482075,1756230705791,-273.123241,0.000279,7]
[381482076,1756230705800,-394.74764,0.000279,7]
[381482077,1756230705810,-151.0,0.000279,7]
[381482078,1756230705819,-394.74764,0.000279,7]
[381482079,1756230705828,-394.74764,0.000279,7]
[381482080,1756230705838,-151.0,0.000279,7]
[381482081,1756230705847,-394.74763,0.000279,7]
[381482082,1756230705856,-150.0,0.000279,2]
[381482083,1756230705865,-500.0,0.000279,10]
[381482084,1756230705874,-305.08,0.00027912,2]
[381482085,1756230705883,-21033.37345563,0.00027916,2]
[381482086,1756230705892,-171.988464,0.00027918,7]
[381482087,1756230705903,-348.85,0.0002792,2]
[381482088,1756230705912,-150.0,0.0002792,2]
[381482089,1756230705921,-2449.17706946,0.00027921,5]
[381482090,1756230705930,-1425.0,0.00027927,2]
[381482091,1756230705939,-500.0,0.00027934,5]
[381482092,1756230705949,-228.882476,0.00027934,7]
[381482093,1756230705960,-228.882476,0.00027934,7]
[381482094,1756230705969,-228.882476,0.00027934,7]
[381482095,1756230705978,-228.882474,0.00027934,7]
[381482096,1756230705987,-151.0,0.00027934,7]
[381482097,1756230705996,-151.0,0.00027934,7]
[381482098,1756230706006,-500.0,0.00027934,5]
[381482099,1756230706015,-1000.0,0.00027934,2]
[381482100,1756230706025,-528.93,0.00027934,5]
[381482101,1756230706034,-500.0,0.00027934,5]
[381482102,1756230706043,-447.07,0.00027934,5]
[381482103,1756230706052,-500.0,0.00027934,5]
[381482104,1756230706061,-500.0,0.00027934,5]
[381482105,1756230706071,-500.0,0.00027934,5]
[381482106,1756230706082,-500.0,0.00027934,5]
[381482107,1756230706093,-500.0,0.00027934,5]
[381482108,1756230706102,-500.0,0.00027934,5]
[381482109,1756230706112,-500.0,0.00027934,5]
[381482110,1756230706122,-500.0,0.00027934,5]
[381482111,1756230706131,-182.80026418,0.00027939,2]
[381482112,1756230706141,-1500.0,0.00027941,5]
[381482113,1756230706151,-1142.86,0.00027944,5]
[381482114,1756230706160,-1254.63,0.00027944,5]
[381482115,1756230706170,-1057.93,0.00027944,5]
[381482116,1756230706179,-1079.24,0.00027944,5]
[381482117,1756230706188,-3055.95,0.00027944,5]
[381482118,1756230706197,-1650.32,0.00027944,5]
[381482119,1756230706206,-13513.14,0.00027944,5]
[381482120,1756230706216,-2253.65,0.00027944,5]
[381482121,1756230706225,-1270.75,0.00027944,5]
[381482122,1756230706234,-2157.11,0.00027944,5]
[381482123,1756230706243,-1950.58,0.00027944,5]
[381482124,1756230706253,-1356.06,0.00027944,5]
[381482125,1756230706262,-1314.24,0.00027944,5]
[381482126,1756230706271,-1468.69,0.00027944,5]
[381482127,1756230706280,-809.74,0.00027944,5]
[381482128,1756230706289,-1206.09,0.00027944,5]
[381482129,1756230706298,-741.88,0.00027944,5]
[381482130,1756230706307,-1611.27,0.00027944,5]
[381482131,1756230706316,-1224.97,0.00027944,5]
[381482132,1756230706325,-1049.32,0.00027944,5]
[381482133,1756230706336,-976.61,0.00027944,5]
[381482134,1756230706346,-1611.56,0.00027944,5]
[381482135,1756230706356,-869.98,0.00027944,5]
[381482136,1756230706365,-1131.94,0.00027944,5]
[381482137,1756230706375,-782.57,0.00027944,5]
[381482138,1756230706385,-1548.86,0.00027944,5]
[381482139,1756230706395,-1331.02,0.00027944,5]
[381482140,1756230706404,-1391.3,0.00027944,5]
[381482141,1756230706415,-1191.31,0.00027944,5]
[381482142,1756230706424,-1107.49,0.00027944,5]
[381482143,1756230706433,-1320.74,0.00027944,5]
[381482144,1756230706444,-1054.46,0.00027944,5]
[381482145,1756230706455,-400.0,0.00027944,5]
[381482146,1756230706465,-1150.33,0.00027944,5]
[381482147,1756230706474,-819.86,0.00027944,5]
[381482148,1756230706483,-400.0,0.00027944,5]
[381482149,1756230706493,-933.75,0.00027944,5]
[381482150,1756230706502,-1547.78,0.00027944,5]
[381482151,1756230706511,-1438.18,0.00027944,5]
[381482152,1756230706521,-6789.96,0.00027944,5]
[381482153,1756230706533,-1497.03,0.00027944,5]
[381482154,1756230706543,-1497.12,0.00027944,5]
[381482155,1756230706554,-400.0,0.00027944,5]
[381482156,1756230706565,-863.08,0.00027944,5]
[381482157,1756230706575,-753.29,0.00027944,5]
[381482158,1756230706584,-787.78,0.00027944,5]
[381482159,1756230706594,-1613.31,0.00027944,5]
[381482160,1756230706604,-773.75,0.00027944,5]
[381482161,1756230706613,-586.3,0.00027944,5]
[381482162,1756230706623,-530.09,0.00027944,5]
[381482163,1756230706632,-1037.63,0.00027944,5]
[381482164,1756230706641,-1217.55,0.00027944,5]
[381482165,1756230706651,-1228.91,0.00027944,5]
[381482166,1756230706663,-400.0,0.00027944,5]
[381482167,1756230706672,-1141.77,0.00027944,5]
[381482168,1756230706681,-1590.13,0.00027944,5]
[381482169,1756230706691,-924.3,0.00027944,5]
[381482170,1756230706699,-575.23,0.00027944,5]
[381482171,1756230706709,-664.99,0.00027944,5]
[381482172,1756230706719,-778.5,0.00027944,5]
[381482173,1756230706728,-1457.28,0.00027944,5]
[381482174,1756230706738,-724.45,0.00027944,5]
[381482175,1756230706747,-847.97,0.00027944,5]
[381482176,1756230706757,-630.74,0.00027944,5]
[381482177,1756230706768,-1505.52,0.00027944,5]
[381482178,1756230706778,-717.92,0.00027944,5]
[381482179,1756230706788,-431.96,0.00027944,5]
[381482180,1756230706798,-1179.57,0.00027944,5]
[381482181,1756230706807,-1699.29,0.00027944,5]
[381482182,1756230706817,-854.23,0.00027944,5]
[381482183,1756230706826,-628.02,0.00027944,5]
[381482184,1756230706835,-1139.37,0.00027944,5]
[381482185,1756230706845,-480.43,0.00027944,5]
[381482186,1756230706854,-683.47,0.00027944,5]
[381482187,1756230706864,-1228.89,0.00027944,5]
[381482188,1756230706873,-421815.68284721,0.00027945,2]
[381482189,1756230708016,-440.090666,0.000249,7]
[381482190,1756230708027,-151.0,0.000268,7]
[381482191,1756230708039,-400.0,0.00027397,5]
[381482192,1756230708049,-69.29695625,0.00027397,7]
[381482193,1756230708063,-104.93542675,0.00027397,7]
[381482194,1756230708073,-3070.15207725,0.00027945,2]
[381482195,1756230708486,-683.817013,0.00027397,7]
[381482196,1756230708496,-3506.55630772,0.00027945,2]
[381482197,1756230708507,-1545.48010783,0.00027945,2]
[381482198,1756230708519,-1180.91989217,0.00027945,2]
[381482199,1756230709546,-151.0,0.00019902,2]
[381482200,1756230709556,-174.232383,0.000248,7]
[381482201,1756230709570,-1032.297617,0.000248,7]